[Event "Karel Janecek Open 2024"]
[Site "Prague"]
[Date "2024.03.01"]
[Round "3.1"]
[White "Safarli, Eltaj"]
[Black "Sofronie, Iulian"]
[Result "1/2-1/2"]
[ECO "C55"]
[WhiteElo "2604"]
[BlackElo "2422"]
[Annotator "TA"]
[PlyCount "98"]
[EventDate "2024.02.22"]
[EventType "swiss"]
[EventCountry "CZE"]
[SourceTitle "playchess.com"]
[Source "ChessBase"]
[SourceQuality "1"]
[TimeControl "40/5400+30:1800+30"]

{[%evp 15,98,26,37,37,34,43,35,40,31,37,47,29,30,16,19,9,25,-31,-23,-30,-34,-35,-25,-30,-18,-25,-14,-32,0,0,0,0,0,0,0,0,0,0,0,0,0,0,0,0,0,0,0,0,0,0,0,0,0,0,0,0,0,0,0,0,0,0,3,0,0,0,0,0,0,0,0,0,0,0,0,0,0,0,0,0,0,0,0,0,0]} 1. e4 {[%emt 0:00:04]} e5 {[%emt 0:00:06]} 2. Nf3 {[%emt 0:00:49]} Nc6 {[%emt 0:00:22]} 3. Bc4 {[%emt 0:01:07]} Nf6 {[%emt 0:00:46]} 4. d3 {[%emt 0:00:17]} h6 {[%emt 0:00:16]} 5. O-O {[%emt 0:01:09]} d6 {[%emt 0:00:21]} 6. a4 {[%emt 0:00:47]} g6 {[%emt 0:02:01]} 7. Nc3 {[%emt 0:01:02]} Bg7 {[%emt 0:00:37]} 8. h3 {[%emt 0:00:38]} O-O {[%emt 0:13:13]} 9. Be3 {[%emt 0:00:44]} Be6 {[%emt 0:06:40]} 10. Bxe6 {[%emt 0:00:17]} fxe6 {[%emt 0:00:03]} 11. Ne2 {[%emt 0:00:06] White is slightly better.} Nh5 {[%emt 0:03:16]} 12. c3 {[%emt 0:02:00]} d5 {[%emt 0:07:16]} 13. Nh2 {[%emt 0:03:57]} Nf4 {[%emt 0:03:37]} 14. Nxf4 {[%emt 0:10:20]} exf4 {[%emt 0:00:20]} 15. Bc5 {[%emt 0:00:20]} Re8 {[%emt 0:05:22]} 16. Nf3 {[%emt 0:02:09]} (16. Re1 $11) 16... b6 {[%emt 0:01:29]} 17. Ba3 {[%emt 0:00:21]} dxe4 $1 {[%emt 0:04:36]} 18. dxe4 {[%emt 0:00:04]} Qxd1 {[%emt 0:00:14]} 19. Rfxd1 {[%emt 0:00:12]} Rad8 {[%emt 0:01:38]} 20. Kf1 {[%emt 0:02:41]} Kf7 {[%emt 0:04:29]} 21. Ke2 {[%emt 0:01:49]} a6 {[%emt 0:06:06]} 22. Rac1 {[%emt 0:13:44] The position is equal.} Rxd1 {[%emt 0:04:16]} 23. Rxd1 {[%emt 0:01:09]} Rd8 {[%emt 0:00:03] Prevents Rd7+} 24. Rxd8 {[%emt 0:05:04]} Nxd8 $11 {[%emt 0:00:05][%mdl 4096] Endgame. KBN-KBN} 25. Kd3 {[%emt 0:00:07]} Nc6 {[%emt 0:00:40]} 26. b4 {[%emt 0:02:28]} Ne5+ {[%emt 0:07:45]} 27. Nxe5+ {[%emt 0:00:53]} Bxe5 {[%emt 0:00:03] KB-KB} 28. c4 {[%emt 0:06:30]} c6 {[%emt 0:06:16]} 29. b5 {[%emt 0:00:08]} cxb5 {[%emt 0:00:27]} 30. cxb5 {[%emt 0:00:14]} axb5 {[%emt 0:01:09]} 31. axb5 {[%emt 0:00:03]} g5 {[%emt 0:02:48]} 32. Bb4 {[%emt 0:04:12]} h5 {[%emt 0:01:37]} 33. f3 {[%emt 0:00:34]} h4 {[%emt 0:09:17]} 34. Be1 {[%emt 0:02:17]} Bc7 {[%emt 0:00:57]} 35. Kc4 {[%emt 0:00:47]} Bd8 {[%emt 0:00:39]} 36. Bf2 {[%emt 0:02:11]} Kf6 {[%emt 0:01:09]} 37. Bd4+ {[%emt 0:04:16]} Kf7 {[%emt 0:04:42]} 38. Be5 {[%emt 0:00:23]} Be7 {[%emt 0:00:23]} 39. Bd4 {[%emt 0:09:44]} Bd8 {[%emt 0:00:06]} 40. Kd3 {[%emt 0:01:58]} Kg6 {[%emt 0:00:46]} 41. Bf2 {[%emt 0:34:45]} Kf6 {[%emt 0:30:46]} 42. Kd4 {[%emt 0:01:00]} Be7 {[%emt 0:00:32] [#] ( -> ...Bc5+)} 43. Kc3 {[%emt 0:00:55]} (43. Kd3 $5 Bd8 $8 44. Kd4 $11) 43... Bd8 {[%emt 0:00:05]} 44. Kc4 {[%emt 0:00:03]} Kf7 {[%emt 0:00:00]} 45. Bd4 {[%emt 0:00:00]} Bc7 {[%emt 0:00:00]} 46. Bh8 {[%emt 0:00:00]} Bd8 {[%emt 0:00:00]} 47. Be5 {[%emt 0:00:00]} Kg6 {[%emt 0:00:00]} 48. Bd6 {[%emt 0:00:00]} Kf7 {[%emt 0:00:00]} 49. Kd4 {[%emt 0:00:00]} Bf6+ {[%emt 0:00:00] Weighted Error Value: White=0.06 (flawless) /Black=0.03 (flawless) .  Mistake:       	White=1     	---        Inaccurate:     	---       	Black=1      OK:         	White=15    	Black=20     Strong:       	---       	Black=1} 1/2-1/2

[Event "Karel Janecek Open 2024"]
[Site "Prague"]
[Date "2024.03.01"]
[Round "3.2"]
[White "Neuman, Petr"]
[Black "Sethuraman, S.P."]
[Result "1-0"]
[ECO "B31"]
[WhiteElo "2398"]
[BlackElo "2594"]
[Annotator "TA"]
[PlyCount "79"]
[EventDate "2024.02.22"]
[EventType "swiss"]
[EventCountry "CZE"]
[SourceTitle "playchess.com"]
[Source "ChessBase"]
[SourceQuality "1"]
[TimeControl "40/5400+30:1800+30"]

{[%evp 10,79,25,33,39,20,26,19,47,8,13,0,0,0,6,2,19,2,9,-30,-23,-51,-9,-11,-1,-63,-33,-39,-36,-157,-134,-141,-161,-149,-142,-152,-155,-156,-127,-116,-88,-87,-79,-60,-83,-100,-96,-84,68,70,70,71,157,165,441,443,443,444,434,421,694,643,700,706,661,716,712,702,692,646,788,752]} 1. e4 {[%emt 0:00:05]} c5 {[%emt 0:00:42]} 2. Nf3 {[%emt 0:00:08]} Nc6 {[%emt 0:01:57]} 3. Bb5 {[%emt 0:00:21]} g6 {[%emt 0:00:08]} 4. O-O {[%emt 0:00:18]} Bg7 {[%emt 0:00:05]} 5. Bxc6 {[%emt 0:02:35]} dxc6 {[%emt 0:00:33]} 6. d3 {[%emt 0:00:35]} Qc7 {[%emt 0:00:06]} 7. a4 {[%emt 0:02:19]} Nf6 {[%emt 0:03:58]} 8. a5 {[%emt 0:00:39]} e5 {[%emt 0:09:09][%cal Oc5c4] The position is equal.} 9. Nbd2 {[%emt 0:01:15]} Be6 {[%emt 0:02:31]} 10. b3 {[%emt 0:04:36]} O-O {[%emt 0:04:48]} 11. Nc4 {[%emt 0:06:33]} Nh5 {[%emt 0:02:02]} 12. Be3 {[%emt 0:05:14]} b6 {[%emt 0:00:46]} 13. axb6 {[%emt 0:04:10]} axb6 {[%emt 0:00:09]} 14. Qd2 {[%emt 0:09:24]} Bg4 {[%emt 0:07:18]} 15. Ng5 {[%emt 0:05:46]} Nf4 {[%emt 0:17:49] White should prevent ...h6.} 16. h3 {[%emt 0:12:04]} Bd7 {[%emt 0:04:22]} 17. Kh2 {[%emt 0:02:50]} (17. b4 $11 b5 18. Na5) 17... f6 {[%emt 0:14:42]} 18. Nf3 {[%emt 0:00:06][%cal Od3d4]} b5 {[%emt 0:00:03]} 19. Na5 {[%emt 0:01:14]} (19. Bxc5 $15 bxc4 20. Bxf8 Rxf8 21. bxc4) 19... Ne6 $17 {[%emt 0:00:48]} 20. b4 {[%emt 0:18:01]} cxb4 {[%emt 0:01:10]} 21. Qxb4 {[%emt 0:00:04]} c5 {[%emt 0:00:45]} 22. Qe1 {[%emt 0:00:48]} f5 {[%emt 0:01:03] Strongly threatening ...fxe4.} 23. Bd2 {[%emt 0:00:38]} fxe4 {[%emt 0:18:27]} 24. Qxe4 {[%emt 0:00:21]} b4 {[%emt 0:00:04]} 25. Nb3 {[%emt 0:02:15][%cal Ba5b3,Bb3c5,Bc5e4,Be4g5][%mdl 32]} Rxa1 {[%emt 0:05:24]} 26. Rxa1 {[%emt 0:02:44]} Bc6 {[%emt 0:00:04]} 27. Qc4 {[%emt 0:00:06][%csl LRc5,LRe6] [#]} e4+ $1 {[%emt 0:00:02]} 28. Kg1 {[%emt 0:00:19] [#] Hoping for Ra6.} Qd6 $2 {[%emt 0:04:24]} (28... Bxa1 $6 29. Qxe6+ Kh8 30. dxe4 $11) (28... Bd7 $1 $17 {[%cal Og7a1]} 29. Ng5 Bxa1 30. Nxa1 (30. Nxe6 $2 Bxe6 31. Qxe6+ Qf7 $19) 30... Qd6 31. Nxe4 Qb6) 29. Ra6 $36 {[%emt 0:02:17][%cal Oa6c6][%mdl 2048] Rxc6! would now be deadly. White has good play.} exf3 {[%emt 0:00:39]} 30. Nxc5 $1 {[%emt 0:01:51]} Re8 {[%emt 0:00:26]} (30... Qd5 $142 31. Nxe6 Rc8) 31. Ne4 $16 {[%emt 0:00:36] The board is on fire.} (31. Bxb4 $2 Qd5 (31... fxg2 $2 32. Nxe6 Qxe6 33. Qxc6 $18) 32. Nxe6 Qxc4 (32... Rxe6 $2 33. gxf3 Qxc4 34. dxc4 $19) 33. dxc4 Rxe6 34. gxf3 Bd4 $19) 31... Qe5 {[%emt 0:00:36]} (31... Qd5 {was necessary.} 32. Rxc6 Qxc4 33. Rxc4 b3) 32. Qxc6 $18 {[%emt 0:02:18] White is clearly winning.} (32. Rxc6 Qa1+) 32... Nd4 {[%emt 0:00:44]} 33. Qc4+ {[%emt 0:00:07]} Kh8 {[%emt 0:00:22]} 34. Ng5 {[%emt 0:08:46] Intending Nf7+ and mate.} (34. Qxb4 Ne2+ 35. Kh1 Rb8 $11) 34... Ne2+ {[%emt 0:00:03]} (34... Qe7 $142 35. Nf7+ (35. Bxb4 {leads to mate.} Qxg5) (35. Qxb4 Qxb4 36. Bxb4 Nxc2 $16) (35. gxf3 h6 $18) (35. Nxf3 Qe2 $18) 35... Kg8 36. Nd6+ (36. Bxb4 $2 Qxf7 37. Qxf7+ Kxf7 $19) 36... Kh8 37. Nxe8 (37. Qxb4 Rf8 $16) (37. Bxb4 Ne2+ 38. Kh2 fxg2 $18) 37... Ne2+ 38. Kh2 Qe5+ 39. g3 Nxg3) 35. Kh1 {[%emt 0:00:12]} Ng3+ {[%emt 0:01:05]} 36. fxg3 {[%emt 0:00:09] Threatening mate with Nf7+.} fxg2+ {[%emt 0:00:36]} 37. Kg1 $1 {[%emt 0:00:07] White threatens Nf7+ and mate.} Qd4+ {[%emt 0:00:31]} 38. Qxd4 $1 {[%emt 0:00:05]} ({Inferior is} 38. Kxg2 Re2+ 39. Kh1 Rh2+ 40. Kxh2 Qf2+ 41. Kh1 Qf1+ 42. Kh2 Qf2+ 43. Kh1 Qf1+ 44. Kh2 Qf2+ $11) 38... Bxd4+ {[%emt 0:00:03]} 39. Kxg2 {[%emt 0:00:06]} h6 {[%emt 0:00:43]} 40. Ne4 {[%emt 0:00:19] Weighted Error Value: White=0.15 (very precise) /Black=0.47.  Mistake:       	White=2     	Black=4      Inaccurate:     	White=3     	Black=3      OK:         	White=10    	Black=11     Best:        	White=4     	Black=3      Strong:       	White=1     	Black=1} 1-0

[Event "Karel Janecek Open 2024"]
[Site "Prague"]
[Date "2024.03.01"]
[Round "3.3"]
[White "Amar, Elham"]
[Black "Harshavardhan G B"]
[Result "0-1"]
[ECO "B89"]
[WhiteElo "2555"]
[BlackElo "2392"]
[Annotator "RC"]
[PlyCount "178"]
[EventDate "2024.02.22"]
[EventType "swiss"]
[EventCountry "CZE"]
[SourceTitle "playchess.com"]
[Source "ChessBase"]
[SourceQuality "1"]
[TimeControl "40/5400+30:1800+30"]

1. e4 {[%emt 0:01:00]} c5 {[%emt 0:00:16]} 2. Nf3 {[%emt 0:00:16]} d6 {[%emt 0:00:15]} 3. d4 {[%emt 0:00:32]} cxd4 {[%emt 0:00:09]} 4. Nxd4 {[%emt 0:00:05]} Nf6 {[%emt 0:00:08]} 5. Nc3 {[%emt 0:00:19]} Nc6 {[%emt 0:00:08]} 6. Bc4 {[%emt 0:00:27]} e6 {[%emt 0:00:12]} 7. Be3 {[%emt 0:00:15]} Bd7 {[%emt 0:00:18]} 8. Qe2 {[%emt 0:08:59]} a6 {[%emt 0:00:13]} 9. Bb3 {[%emt 0:08:04]} b5 {[%emt 0:01:01]} 10. O-O-O {[%emt 0:11:03]} Na5 {[%emt 0:00:19]} 11. f3 {[%emt 0:04:49]} Be7 {[%emt 0:00:32]} 12. g4 {[%emt 0:10:33]} b4 {[%emt 0:00:08]} 13. Na4 {[%emt 0:00:26]} Qc7 {[%emt 0:03:37]} 14. Kb1 {[%emt 0:06:18]} Nxb3 {[%emt 0:00:13]} 15. axb3 {[%emt 0:08:39]} O-O {[%emt 0:00:47]} 16. g5 {[%emt 0:01:31]} Nh5 {[%emt 0:00:08]} 17. f4 {[%emt 0:00:11]} g6 {[%emt 0:00:07]} 18. f5 {[%emt 0:01:37]} Rfc8 {[%emt 0:00:07]} 19. Rc1 {[%emt 0:15:41]} e5 {[%emt 0:04:05]} 20. fxg6 {[%emt 0:00:37]} fxg6 {[%emt 0:02:31]} 21. Nf5 {[%emt 0:00:06]} Bxa4 {[%emt 0:06:38]} 22. Nxe7+ {[%emt 0:04:21]} Qxe7 {[%emt 0:00:07]} 23. bxa4 {[%emt 0:00:03]} Qb7 {[%emt 0:04:02]} 24. Bd2 {[%emt 0:02:47]} b3 {[%emt 0:06:17]} 25. Qd3 {[%emt 0:01:22]} bxc2+ {[%emt 0:00:24]} 26. Rxc2 {[%emt 0:00:05]} Rxc2 {[%emt 0:00:07]} 27. Qxc2 {[%emt 0:00:34]} Rc8 {[%emt 0:00:34]} 28. Qd3 {[%emt 0:00:23]} Rb8 {[%emt 0:02:24]} 29. Qc4+ {[%emt 0:07:54]} Kg7 {[%emt 0:03:35]} 30. Bc3 {[%emt 0:00:12]} Rc8 {[%emt 0:05:45]} 31. Qb4 {[%emt 0:00:03]} Qxb4 {[%emt 0:04:58]} 32. Bxb4 {[%emt 0:00:03]} Kf7 {[%emt 0:00:20]} 33. Bxd6 {[%emt 0:03:55]} Ke6 {[%emt 0:00:35]} 34. Ba3 {[%emt 0:03:42]} Rc4 {[%emt 0:00:07]} 35. Rd1 {[%emt 0:00:31]} Rxa4 {[%emt 0:00:17]} 36. Rd6+ {[%emt 0:00:07]} Kf7 {[%emt 0:00:08]} 37. Rd7+ {[%emt 0:00:54]} Kg8 {[%emt 0:00:07]} 38. Rd8+ {[%emt 0:00:10]} Kf7 {[%emt 0:00:06]} 39. Rf8+ {[%emt 0:00:50]} Kg7 {[%emt 0:00:32]} 40. Ra8 {[%emt 0:00:31]} Nf4 {[%emt 0:02:50]} 41. Bd6 {[%emt 0:12:50]} Rxe4 {[%emt 0:00:29]} 42. Rxa6 {[%emt 0:00:13]} Kf7 {[%emt 0:00:33]} 43. Kc2 {[%emt 0:02:10]} Nd5 {[%emt 0:00:43]} 44. b3 {[%emt 0:02:54]} Rg4 {[%emt 0:02:48]} 45. b4 {[%emt 0:08:30]} Nxb4+ {[%emt 0:01:35]} 46. Bxb4 {[%emt 0:00:04]} Rxb4 {[%emt 0:00:06]} 47. Ra7+ {[%emt 0:00:01]} Ke6 {[%emt 0:00:47]} 48. Rxh7 {[%emt 0:00:05]} Kf5 {[%emt 0:00:38]} 49. h4 {[%emt 0:00:06]} Rd4 {[%emt 0:00:10]} 50. Kc3 {[%emt 0:01:33]} Rd8 {[%emt 0:00:26]} 51. Rf7+ {[%emt 0:01:41]} Kg4 {[%emt 0:00:06]} 52. Rg7 {[%emt 0:00:09]} Rd6 {[%emt 0:00:46]} 53. Rf7 {[%emt 0:04:28]} e4 {[%emt 0:02:57]} 54. Rf6 {[%emt 0:00:06]} Rd3+ {[%emt 0:00:05]} 55. Kc2 {[%emt 0:00:08]} Kh5 {[%emt 0:00:15]} 56. Rf4 {[%emt 0:00:36]} Rh3 {[%emt 0:00:11]} 57. Rxe4 {[%emt 0:00:06]} Rxh4 {[%emt 0:00:06]} 58. Re5 {[%emt 0:00:11]} Rd4 {[%emt 0:00:46]} 59. Kc3 {[%emt 0:01:09]} Rd8 {[%emt 0:00:08]} 60. Kc2 {[%emt 0:00:48]} Kg4 {[%emt 0:00:05]} 61. Ra5 {[%emt 0:00:52]} Kh4 {[%emt 0:00:23]} 62. Rb5 {[%emt 0:00:20]} Rd4 {[%emt 0:00:18]} 63. Ra5 {[%emt 0:00:35]} Rg4 {[%emt 0:00:39]} 64. Kd2 {[%emt 0:00:24]} Rxg5 {[%emt 0:00:06]} 65. Ra6 {[%emt 0:00:41]} Kg3 {[%emt 0:00:39]} 66. Ke3 {[%emt 0:00:59]} Rg4 {[%emt 0:00:28]} 67. Rb6 {[%emt 0:01:12]} g5 {[%emt 0:00:07]} 68. Rb5 {[%emt 0:00:03]} Kg2 {[%emt 0:00:12]} 69. Ke2 {[%emt 0:01:21]} Rg3 {[%emt 0:00:12]} 70. Rf5 {[%emt 0:00:25]} g4 {[%emt 0:00:20]} 71. Rg5 {[%emt 0:00:52]} Kh2 {[%emt 0:00:42]} 72. Rh5+ {[%emt 0:00:32]} Rh3 {[%emt 0:00:34]} 73. Rg5 {[%emt 0:00:06]} Kg3 {[%emt 0:00:17]} 74. Rg8 {[%emt 0:00:52]} Rh1 {[%emt 0:00:09]} 75. Rg7 {[%emt 0:00:10]} Rg1 {[%emt 0:00:06]} 76. Rg8 {[%emt 0:00:50]} Kh2 {[%emt 0:00:07]} 77. Rh8+ {[%emt 0:00:11]} Kg2 {[%emt 0:00:05]} 78. Rh7 {[%emt 0:00:51]} g3 {[%emt 0:00:07]} 79. Rh8 {[%emt 0:00:28]} Ra1 {[%emt 0:00:05]} 80. Rh7 {[%emt 0:00:14]} Ra8 {[%emt 0:00:06]} 81. Rh6 {[%emt 0:00:16]} Re8+ {[%emt 0:00:05]} 82. Kd2 {[%emt 0:00:03]} Kf2 {[%emt 0:00:05]} 83. Rf6+ {[%emt 0:00:08]} Kg1 {[%emt 0:00:05]} 84. Rg6 {[%emt 0:00:11]} g2 {[%emt 0:00:05]} 85. Rh6 {[%emt 0:00:08]} Re5 {[%emt 0:00:05]} 86. Kd3 {[%emt 0:00:17]} Kf2 {[%emt 0:00:06]} 87. Rf6+ {[%emt 0:00:02]} Kg3 {[%emt 0:00:06]} 88. Rg6+ {[%emt 0:00:05]} Kf3 {[%emt 0:00:05]} 89. Rg8 {[%emt 0:00:04]} Rf5 {[%emt 0:00:19]} 0-1

[Event "Karel Janecek Open 2024"]
[Site "Prague"]
[Date "2024.03.01"]
[Round "3.4"]
[White "Ivanov, Mike"]
[Black "Li, Di"]
[Result "0-1"]
[ECO "A34"]
[WhiteElo "2356"]
[BlackElo "2563"]
[Annotator "TA"]
[PlyCount "80"]
[EventDate "2024.02.22"]
[EventType "swiss"]
[EventCountry "CZE"]
[SourceTitle "playchess.com"]
[Source "ChessBase"]
[SourceQuality "1"]
[TimeControl "40/5400+30:1800+30"]

{[%evp 9,80,12,22,2,21,0,17,37,33,0,0,2,7,0,0,-13,-16,-20,-27,-41,-23,-22,-22,-22,-20,-154,-154,-152,-160,-156,-160,-163,-158,-147,-157,-214,-204,-219,-193,-233,-219,-306,-292,-346,-356,-370,-377,-370,-375,-444,-434,-477,-477,-522,-497,-507,-499,-550,-550,-656,-663,-651,-659,-1095,-980,-1495,-1463,-5850,-1964,-2167,-2106,-29985,-29986]} 1. Nf3 {[%emt 0:00:03]} c5 {[%emt 0:00:38]} 2. c4 {[%emt 0:00:36]} Nc6 {[%emt 0:00:37]} 3. Nc3 {[%emt 0:00:31]} e5 {[%emt 0:00:35][%cal Be7e5,Be5e4][%mdl 32]} 4. e3 {[%emt 0:01:10]} Nf6 {[%emt 0:00:08]} 5. d4 {[%emt 0:00:19]} e4 {[%emt 0:00:13]} 6. Ne5 {[%emt 0:05:29]} h5 {[%emt 0:00:18]} 7. a3 {[%emt 0:13:19]} g6 {[%emt 0:21:09]} 8. Be2 {[%emt 0:06:37] The position is equal.} Bg7 {[%emt 0:06:20]} 9. Nxc6 {[%emt 0:04:35]} dxc6 {[%emt 0:00:05]} 10. dxc5 {[%emt 0:00:05]} Qxd1+ {[%emt 0:06:15]} 11. Bxd1 {[%emt 0:02:20]} Bf5 {[%emt 0:11:01]} 12. Bc2 {[%emt 0:04:52]} O-O-O {[%emt 0:00:50]} 13. Bd2 {[%emt 0:05:49]} Ng4 {[%emt 0:05:30][%cal Og4f2]} 14. Rd1 {[%emt 0:06:23]} Ne5 {[%emt 0:00:22]} 15. Bxe4 {[%emt 0:06:29]} Be6 {[%emt 0:15:46]} 16. b3 {[%emt 0:12:55]} Nd3+ {[%emt 0:03:00]} 17. Ke2 {[%emt 0:16:49] White is on the road to losing.} (17. Bxd3 $1 $11 {was the only way to keep the balance.} Rxd3 18. Ne4) 17... Nxc5 $17 {[%emt 0:01:10] Black is much more active.} 18. Bc2 {[%emt 0:00:07] [#]} Rxd2+ $1 {[%emt 0:08:53][%mdl 512]} 19. Kxd2 {[%emt 0:00:12] Hoping for Ne2.} Rd8+ {[%emt 0:00:05]} 20. Ke2 {[%emt 0:00:07]} Bxc3 {[%emt 0:00:06]} 21. Rxd8+ {[%emt 0:00:05]} Kxd8 {[%emt 0:00:04]} 22. f3 {[%emt 0:03:09]} (22. e4 $17 {is a better defense.}) 22... a5 $19 {[%emt 0:00:55]} 23. Kf2 {[%emt 0:02:06]} Bb2 {[%emt 0:03:03]} 24. b4 {[%emt 0:03:12]} Na6 {[%emt 0:01:38]} 25. b5 {[%emt 0:00:18]} Nc5 {[%emt 0:00:27]} 26. Rd1+ {[%emt 0:01:11]} Kc7 {[%emt 0:00:14]} 27. b6+ {[%emt 0:02:37]} Kc8 {[%emt 0:00:25]} 28. a4 {[%emt 0:00:29]} Nd7 {[%emt 0:00:41]} ({But not} 28... Bxc4 29. Rb1 Bf6 30. f4 $19) 29. f4 {[%emt 0:01:54]} Nxb6 {[%emt 0:00:32]} 30. Rb1 {[%emt 0:01:03]} Nxc4 {[%emt 0:00:06]} 31. Bb3 {[%emt 0:00:21]} Bf6 {[%emt 0:00:28]} 32. e4 {[%emt 0:00:42]} Kc7 {[%emt 0:00:16]} 33. Rc1 {[%emt 0:00:18]} b5 {[%emt 0:01:12]} 34. f5 {[%emt 0:00:41]} gxf5 {[%emt 0:00:16]} 35. exf5 {[%emt 0:00:02]} Bd5 {[%emt 0:00:06]} 36. Re1 {[%emt 0:01:00]} Nb2 {[%emt 0:01:01][%csl LRa4,LRb3]} 37. Bc2 {[%emt 0:00:32] Against Nd3+} bxa4 {[%emt 0:00:42]} 38. Be4 {[%emt 0:00:18]} a3 {[%emt 0:00:27] [#] ( -> ...Bxe4)} 39. Kf3 {[%emt 0:00:43]} Nd3 {[%emt 0:00:52]} 40. Rd1 {[%emt 0:00:27]} Bxe4+ {[%emt 0:00:19] Weighted Error Value: White=0.81/Black=0.03 (flawless) .  Mistake:       	White=2     	---        Inaccurate:     	White=2     	---        OK:         	White=7     	Black=16     Best:        	White=2     	Black=4      Brilliant:      	---       	Black=1} 0-1

[Event "Karel Janecek Open 2024"]
[Site "Prague"]
[Date "2024.03.01"]
[Round "3.5"]
[White "Kourkoulos-Arditis, Stamatis"]
[Black "Shagbazyan, Taron"]
[Result "1/2-1/2"]
[ECO "A11"]
[WhiteElo "2547"]
[BlackElo "2403"]
[Annotator "TA"]
[PlyCount "81"]
[EventDate "2024.02.22"]
[EventType "swiss"]
[EventCountry "CZE"]
[SourceTitle "playchess.com"]
[Source "ChessBase"]
[SourceQuality "1"]
[TimeControl "40/5400+30:1800+30"]

{[%evp 11,81,13,16,13,12,0,52,41,67,51,66,42,62,39,43,61,56,24,32,24,29,18,26,27,21,12,20,25,26,0,-12,0,-10,-13,-33,-34,-44,-39,0,-1,0,0,0,0,0,0,0,0,0,0,0,0,0,0,0,0,0,0,0,0,0,0,0,-11,-22,-41,0,0,0,-37,0,-95]} 1. Nf3 {[%emt 0:00:04]} Nf6 {[%emt 0:18:12]} 2. g3 {[%emt 0:00:01]} d5 {[%emt 0:01:21]} 3. Bg2 {[%emt 0:00:04]} c6 {[%emt 0:01:59]} 4. O-O {[%emt 0:00:10]} Bf5 {[%emt 0:00:35]} 5. c4 {[%emt 0:00:33]} e6 {[%emt 0:00:30]} 6. Qb3 {[%emt 0:00:43]} Qb6 {[%emt 0:01:04]} 7. d3 {[%emt 0:00:14]} Nbd7 {[%emt 0:03:46]} 8. cxd5 {[%emt 0:00:36]} cxd5 {[%emt 0:06:01]} (8... Qxb3 $11 9. axb3 exd5) 9. Qxb6 $14 {[%emt 0:04:07] White is slightly better.} Nxb6 {[%emt 0:16:29]} 10. Bf4 {[%emt 0:17:00]} Bc5 {[%emt 0:07:28]} 11. Rc1 {[%emt 0:03:33]} Rc8 {[%emt 0:06:17]} 12. Nbd2 {[%emt 0:06:31] Threatens to win with Nb3.} Ke7 $1 {[%emt 0:07:32]} 13. Nb3 {[%emt 0:14:23]} Bd6 {[%emt 0:07:54]} 14. Be3 {[%emt 0:02:18]} Rxc1+ {[%emt 0:05:16]} 15. Rxc1 {[%emt 0:00:06]} e5 $1 {[%emt 0:04:29] Against Nfd4} 16. Bc5 {[%emt 0:04:18]} Nfd7 {[%emt 0:01:23]} 17. Bxd6+ {[%emt 0:12:53]} Kxd6 {[%emt 0:00:03]} 18. e4 {[%emt 0:01:09]} Bg6 {[%emt 0:02:59]} 19. Na5 {[%emt 0:00:44]} Rb8 {[%emt 0:00:30]} 20. exd5 {[%emt 0:08:34]} (20. Nh4 {simplifies} Nc5 21. Rd1 Ne6 22. Nxg6 hxg6 23. exd5 Nd4 24. h4) 20... Bxd3 {[%emt 0:00:07][%cal Of7f6]} 21. Ng5 {[%emt 0:00:08]} Bg6 {[%emt 0:01:11][%cal Oh7h6]} 22. h4 {[%emt 0:14:47][%cal Oh4h5]} h6 {[%emt 0:00:17]} 23. h5 {[%emt 0:00:04]} hxg5 {[%emt 0:00:24]} 24. hxg6 {[%emt 0:00:03]} fxg6 {[%emt 0:00:54]} 25. Be4 {[%emt 0:00:39]} Nf6 {[%emt 0:02:23]} 26. Bxg6 {[%emt 0:00:07]} e4 {[%emt 0:00:55]} 27. Re1 {[%emt 0:03:38]} Kxd5 {[%emt 0:00:20]} 28. Rd1+ {[%emt 0:02:38]} Ke5 {[%emt 0:00:08]} 29. Rc1 {[%emt 0:00:16]} Rc8 {[%emt 0:01:21]} 30. Rxc8 {[%emt 0:00:21]} Nxc8 {[%emt 0:00:01]} 31. Nxb7 {[%emt 0:00:06]} Nd6 {[%emt 0:02:19]} 32. Nxd6 {[%emt 0:03:09]} Kxd6 $11 {[%emt 0:00:03][%mdl 4096] Endgame. KB-KN} 33. Kf1 {[%emt 0:00:13]} Ke5 {[%emt 0:00:10]} 34. Ke2 {[%emt 0:00:21]} Kd4 {[%emt 0:00:25]} 35. Bf7 {[%emt 0:01:56]} Ng4 {[%emt 0:00:09]} 36. Be6 {[%emt 0:00:24]} Ne5 {[%emt 0:00:09] ...Nd3 is the strong threat.} 37. b4 {[%emt 0:00:14]} Nd3 {[%emt 0:00:36]} 38. a3 {[%emt 0:00:50]} Nc1+ {[%emt 0:00:03]} 39. Kd2 {[%emt 0:00:28]} (39. Kd1 $5 Nd3 $8 40. Ke2 $11) 39... Nd3 {[%emt 0:00:07]} 40. Ke2 {[%emt 0:00:14]} Nc1+ {[%emt 0:00:16]} 41. Kf1 {[%emt 0:06:50] Weighted Error Value: White=0.06 (flawless) /Black=0.07 (flawless) .  Mistake:       	White=1     	Black=1      Inaccurate:     	White=2     	Black=3      OK:         	White=14    	Black=14     Best:        	White=2     	Black=2      Strong:       	---       	Black=2} (41. Kd2 $11 Nd3 42. Ke2) 1/2-1/2